bitfinex/quotes_SOLUSD_20250919
["timestamp","ask_amount","ask_price","bid_price","bid_amount"]
[1758309433600,5.24461885,238.09,238.08,4.86026881]
[1758309433809,2.41067377,238.09,238.08,4.86026881]
[1758309434400,5.24461885,238.09,238.08,37.50026881]
[1758309434703,2.41067377,238.09,238.08,37.50026881]
[1758309435298,5.24461885,238.09,238.08,37.50026881]
[1758309435497,2.41067377,238.09,238.08,36.84026881]
[1758309435675,2.41067377,238.09,238.08,4.20026881]
[1758309435880,5.24461885,238.09,238.08,37.50026881]
[1758309436100,2.41067377,238.09,238.08,37.50026881]
[1758309436608,5.24461885,238.09,238.08,37.50026881]
[1758309436786,2.41067377,238.09,238.08,37.50026881]
[1758309436987,2.41067377,238.09,238.08,51.09586282]
[1758309438103,0.1,238.09,238.08,51.09586282]
[1758309439180,2.41067377,238.09,238.08,50.43586282]
[1758309439617,2.41067377,238.09,238.06,4.2005363]
[1758309439817,2.31067377,238.07,238.03,13.59559401]
[1758309439987,2.834153,238.07,238.04,32.64]
[1758309440188,2.31067377,238.05,238.04,13.59559401]
[1758309440524,2.31067377,238.05,238.04,46.23559401]
[1758309444709,5.81508822,238.05,237.99,13.59559401]
[1758309444918,3.50441445,238.04,238.0,32.64]
[1758309445085,0.67,238.04,238.0,33.3]
[1758309445693,0.67,238.04,238.01,32.64]
[1758309446109,2.31067377,238.02,238.01,32.64]
[1758309448395,2.31067377,238.02,237.99,14.29559401]
[1758309448604,0.66,238.04,238.0,33.34]
[1758309448789,2.31067377,238.01,238.0,46.93559401]
[1758309450299,2.8336059,238.03,238.0,46.93559401]
[1758309450484,2.31067377,238.01,238.0,50.4372037]
[1758309450913,2.31067377,238.01,238.0,51.1372037]
[1758309456808,2.31067377,238.01,238.0,50.4372037]
[1758309457015,2.31067377,238.01,238.0,51.1372037]
[1758309458619,2.31067377,238.01,238.0,50.4372037]
[1758309459029,2.31067377,238.01,238.0,51.1372037]
[1758309460626,2.31067377,238.01,238.0,50.4372037]
[1758309460920,2.31067377,238.01,238.0,51.1372037]
[1758309463102,0.66,238.04,238.0,51.1372037]
[1758309463305,2.31067377,238.01,238.0,51.1372037]
[1758309466028,2.31067377,238.01,238.0,18.4972037]
[1758309466241,2.31067377,238.01,238.0,51.1372037]
[1758309466626,2.31067377,238.01,238.0,50.4372037]
[1758309466815,2.31067377,238.01,238.0,46.23559401]
[1758309467135,2.31067377,238.01,238.0,51.13727468]
[1758309468624,2.31067377,238.01,238.0,50.43727468]
[1758309468805,2.31067377,238.01,238.0,51.13727468]
[1758309469420,2.97067377,238.01,238.0,32.64]
[1758309469933,2.31067377,238.01,238.0,32.64]
[1758309471824,0.66,238.02,238.0,32.64]
[1758309472035,2.31067377,238.01,238.0,32.64]
[1758309472226,2.97067377,238.01,238.0,32.64]
[1758309472930,2.31067377,238.01,238.0,32.64]
[1758309473516,2.97067377,238.01,238.0,32.64]
[1758309473931,2.31067377,238.01,238.0,32.64]
[1758309474133,2.97067377,238.01,238.0,32.64]
[1758309475226,2.31067377,238.01,238.0,32.64]
[1758309475540,0.66,238.03,238.0,32.64]
[1758309475725,2.31067377,238.01,238.0,32.64]
[1758309478314,3.49306434,238.06,238.01,13.59559401]
[1758309478540,3.49306434,238.05,238.02,32.64]
[1758309478834,2.31067377,238.03,238.02,46.23559401]
[1758309479622,2.31067377,238.03,238.02,32.64]
[1758309480233,2.31067377,238.03,238.02,33.3]
[1758309480638,33.51067377,238.03,238.02,33.3]
[1758309480827,33.51067377,238.03,238.02,32.64]
[1758309481144,2.31067377,238.03,238.02,32.64]
[1758309481834,2.31067377,238.03,238.02,33.3]
[1758309482629,1.22804085,238.03,238.02,0.66]
[1758309482833,1.22804085,238.03,238.02,32.64]
[1758309483336,1.22804085,238.03,238.02,33.3]
[1758309483537,2.31067377,238.03,238.02,33.3]
[1758309483748,3.55610755,238.07,238.02,33.3]
[1758309483923,2.31067377,238.03,238.02,33.3]
[1758309484240,33.51067377,238.03,238.02,33.3]
[1758309485449,2.31067377,238.03,238.02,33.3]
[1758309485639,2.31067377,238.03,238.02,0.66]
[1758309485834,1.47876403,238.03,238.02,33.28]
[1758309486040,1.47876403,238.03,238.02,37.48132761]
[1758309486274,1.47876403,238.04,238.02,37.48132761]
[1758309486545,1.47876403,238.04,238.02,4.86132761]
[1758309486727,1.47876403,238.04,238.03,32.62]
[1758309486922,34.03759185,238.04,238.03,32.62]
[1758309487243,34.03759185,238.04,238.03,33.28]
[1758309488149,35.51635588,238.04,238.03,33.28]
[1758309488649,4.31635588,238.04,238.03,32.62]
[1758309489452,35.51635588,238.04,238.03,33.28]
[1758309489950,34.03759185,238.04,238.03,33.28]
[1758309490128,35.51635588,238.04,238.03,33.28]
[1758309491757,35.51635588,238.04,238.03,0.66]
[1758309491953,35.51635588,238.04,238.03,33.28]
[1758309492251,6.0884648,238.04,237.96,13.59559401]
[1758309492463,1.47876403,237.97,237.96,13.59559401]
[1758309492631,1.47876403,237.98,237.97,14.25559401]
[1758309492958,1.47876403,237.99,237.98,0.66]
[1758309493258,1.47876403,237.99,237.98,33.28]
[1758309494148,1.47876403,237.99,237.98,32.62]
[1758309495154,2.19876403,237.99,237.98,32.62]
[1758309495740,1.47876403,237.99,237.98,32.62]
[1758309500353,1.47876403,237.99,237.97,17.79779841]
[1758309500564,2.83794439,238.06,237.98,32.62]
[1758309500857,3.89014861,238.05,237.98,32.62]
[1758309501054,3.89014861,238.04,237.98,32.62]
[1758309501281,3.89014861,238.03,237.98,32.62]
[1758309501445,1.05220422,238.02,237.98,32.62]
[1758309501642,1.47876403,237.99,237.98,32.62]
[1758309502257,1.47876403,237.99,237.97,13.59559401]
[1758309502459,2.83794439,238.03,237.98,32.62]
[1758309502652,1.05226156,238.02,237.99,32.62]
[1758309502967,1.05226156,238.01,237.99,32.62]
[1758309503275,2.83794439,238.03,237.99,32.62]
[1758309503436,3.89025747,238.02,237.99,32.62]
[1758309503635,32.67876403,238.0,237.99,32.62]
[1758309506064,35.5148655,238.0,237.99,32.62]
[1758309508243,42.48228623,238.0,237.99,32.62]
[1758309508844,42.48228623,238.0,237.96,32.62]
[1758309509068,1.47876403,237.97,237.96,32.62]
[1758309512366,1.47876403,237.97,237.96,33.28]
[1758309517865,1.47876403,237.97,237.96,32.62]
[1758309520972,2.83265683,238.0,237.96,33.28]
[1758309521173,1.47876403,237.97,237.96,33.28]
[1758309521774,1.47876403,237.97,237.96,32.62]
[1758309522565,1.47876403,237.97,237.96,33.28]
[1758309522966,1.47876403,237.97,237.96,32.62]
[1758309523976,1.47876403,237.97,237.96,33.28]
[1758309524680,1.47876403,237.97,237.96,33.26]
[1758309530375,31.2,238.01,237.96,37.46238695]
[1758309530580,1.47876403,238.0,237.97,14.25559401]
[1758309530770,1.47876403,238.01,237.98,33.26]
[1758309530965,1.47876403,238.0,237.99,0.66]
[1758309531167,1.47876403,238.0,237.99,33.26]
[1758309532160,1.47876403,238.0,237.99,32.6]
[1758309532483,1.47876403,238.0,237.99,33.26]
[1758309532865,1.47876403,238.0,237.99,37.46185722]
[1758309533663,1.47876403,238.0,237.99,4.86185722]
[1758309533962,1.47876403,238.0,237.99,37.46185722]
[1758309534567,1.47876403,238.0,237.99,4.86185722]
[1758309534766,1.47876403,238.0,237.99,37.46185722]
[1758309535886,1.47876403,238.01,237.99,37.46185722]
[1758309536183,1.47876403,238.04,238.0,18.45727468]
[1758309536362,2.83451174,238.05,238.01,33.26]
[1758309536563,1.47876403,238.02,238.01,32.6]
[1758309536867,1.47876403,238.02,238.01,33.26]
[1758309537482,1.47876403,238.02,238.01,37.46150413]
[1758309540278,1.47876403,238.03,238.01,37.46150413]
[1758309540480,1.47876403,238.03,238.02,0.72]
[1758309541975,1.47876403,238.03,238.02,4.92132761]
[1758309542568,2.83314246,238.08,238.02,4.92132761]
[1758309542769,0.5,238.1,238.02,4.92132761]
[1758309542770,1.47876403,238.04,238.03,33.3]
[1758309544607,1.47876403,238.04,238.03,37.50115111]
[1758309545700,2.83275512,238.07,238.03,37.50115111]
[1758309545903,2.83275512,238.08,238.04,0.72]
[1758309546079,1.47876403,238.07,238.05,32.58]
[1758309546279,1.47876403,238.07,238.05,33.3]
[1758309546496,1.47876403,238.06,238.05,36.78073269]
[1758309547004,1.47876403,238.07,238.05,36.78073269]
[1758309547195,1.47876403,238.07,238.06,0.72]
[1758309547893,2.30995034,238.07,238.06,0.72]
[1758309548590,2.30995034,238.08,238.06,4.92062169]
[1758309548800,2.30995034,238.08,238.07,33.3]
[1758309551697,2.30995034,238.08,238.07,37.50044524]
[1758309553704,2.82853829,238.11,238.07,4.92044524]
[1758309553909,2.30995034,238.1,238.08,33.28]
[1758309554078,2.30995034,238.1,238.08,32.56]
[1758309554398,2.82763456,238.11,238.09,0.72]
[1758309554602,2.82763456,238.11,238.1,32.56]
[1758309554976,2.82763456,238.11,238.1,33.28]
[1758309555174,31.2,238.12,238.1,33.28]
[1758309555394,2.30995034,238.11,238.1,33.28]
[1758309555792,2.30995034,238.11,238.1,32.56]
[1758309559590,2.30995034,238.11,238.1,33.28]
[1758309562304,2.30995034,238.11,238.1,0.72]
[1758309562505,2.30995034,238.11,238.1,33.28]
[1758309563721,2.82742095,238.14,238.1,33.28]
[1758309563920,2.30995034,238.11,238.1,33.28]
[1758309565116,2.30995034,238.11,238.1,32.56]
[1758309566117,2.30995034,238.11,238.1,33.28]
[1758309566327,33.50995034,238.11,238.1,32.54]
[1758309567023,2.30995034,238.11,238.1,32.54]
[1758309567224,33.50995034,238.11,238.1,32.54]
[1758309569324,36.33773941,238.11,238.1,32.54]
[1758309569620,5.13770492,238.11,238.05,13.59559401]
[1758309569925,2.30995034,238.06,238.05,14.31559401]
[1758309570126,2.30995034,238.06,238.05,46.85559401]
[1758309570293,2.82775458,238.1,238.05,46.85559401]
[1758309570498,2.82775458,238.1,238.06,0.72]
[1758309570707,2.82775458,238.1,238.07,32.54]
[1758309570906,2.82775458,238.1,238.08,0.72]
[1758309571098,2.82775458,238.1,238.08,33.26]
[1758309571403,2.82890348,238.1,238.08,33.26]
[1758309571603,31.2,238.11,238.08,33.26]
[1758309571807,2.30995034,238.09,238.08,33.26]
[1758309572212,0.5,238.13,238.08,33.26]
[1758309572410,2.30995034,238.09,238.08,33.26]
[1758309572600,2.30995034,238.09,238.08,32.54]
[1758309572812,2.30995034,238.09,238.08,33.26]
[1758309573225,2.30995034,238.09,238.08,37.46026881]
[1758309573426,2.30995034,238.14,238.08,37.46026881]
[1758309573427,31.2,238.14,238.08,37.46026881]
[1758309573729,2.30995034,238.09,238.08,36.74026881]
[1758309574223,2.30995034,238.09,238.08,37.46026881]
[1758309574627,2.82999798,238.12,238.08,37.46026881]
[1758309574825,2.82999798,238.14,238.08,36.74026881]
[1758309575122,2.30995034,238.09,238.08,36.74026881]
[1758309575311,2.30995034,238.09,238.08,37.46026881]
[1758309579928,5.13994832,238.09,238.08,37.46026881]
[1758309580226,2.30995034,238.09,238.08,37.46026881]
[1758309580432,2.30995034,238.1,238.08,37.46026881]
[1758309580608,2.30995034,238.1,238.09,0.72]
[1758309580808,2.82999798,238.1,238.09,0.72]
[1758309581022,2.30995034,238.1,238.09,0.72]
[1758309581234,2.30995034,238.1,238.09,4.9200924]
[1758309581618,5.13994832,238.1,238.09,4.9200924]
[1758309581930,2.30995034,238.1,238.09,4.9200924]
[1758309582114,2.82999798,238.12,238.09,4.9200924]
[1758309582429,2.30995034,238.1,238.09,4.2000924]
[1758309582632,5.13994832,238.1,238.09,36.7400924]
[1758309582821,2.30995034,238.1,238.09,37.4600924]
[1758309583716,2.82999798,238.1,238.09,37.4600924]
[1758309584021,2.30995034,238.1,238.09,37.4600924]
[1758309584916,2.30995034,238.13,238.09,47.9603234]
[1758309585235,2.83457282,238.12,238.1,0.72]
[1758309585422,2.83457282,238.12,238.11,36.71973961]
[1758309585733,2.83457282,238.12,238.11,37.43973961]
[1758309585930,5.14452316,238.14,238.11,4.91973961]
[1758309586119,2.83457282,238.13,238.12,33.24]
[1758309587141,2.83457282,238.13,238.12,37.43956324]
[1758309589433,2.30995034,238.14,238.12,37.43956324]
[1758309589632,2.30995034,238.14,238.13,0.72]
[1758309589833,2.30995034,238.14,238.12,36.71956324]
[1758309590338,5.14423006,238.14,238.13,0.72]
[1758309590513,2.30995034,238.14,238.13,0.72]
[1758309591013,5.14423006,238.14,238.13,4.91938688]
[1758309591214,2.30995034,238.14,238.13,4.91938688]
[1758309591627,5.14423006,238.14,238.13,4.91938688]
[1758309591837,2.30995034,238.14,238.13,37.43938688]
[1758309592240,5.14423006,238.14,238.13,37.43938688]
[1758309592534,2.30995034,238.14,238.13,37.43938688]
[1758309592934,5.14423006,238.14,238.13,37.43938688]
[1758309593142,2.30995034,238.14,238.13,37.43938688]
[1758309593645,5.14423006,238.14,238.13,37.43938688]
[1758309593830,2.30995034,238.14,238.13,37.43938688]
[1758309598533,2.30995034,238.14,238.13,51.03498089]
[1758309601242,2.30995034,238.15,238.13,61.53344811]
[1758309601452,2.30995034,238.14,238.13,60.81344811]
[1758309601948,2.30995034,238.14,238.13,61.47344811]
[1758309602152,2.30995034,238.14,238.13,63.60735767]
[1758309602646,2.30995034,238.14,238.13,50.97498089]
[1758309602849,2.30995034,238.14,238.13,18.45498089]
[1758309603051,2.30995034,238.14,238.13,50.95498089]
[1758309603253,2.30995034,238.14,238.13,63.58735767]
[1758309603822,2.30995034,238.14,238.11,4.19973961]
[1758309604028,2.30995034,238.12,238.11,13.59559401]
[1758309604249,2.30995034,238.12,238.11,46.09559401]
[1758309605039,2.30995034,238.12,238.11,46.75559401]
[1758309605656,2.30995034,238.12,238.11,32.5]
[1758309607749,1.47809054,238.12,238.11,32.5]
[1758309607931,1.47809054,238.12,238.09,14.25559401]
[1758309608136,1.47809054,238.1,238.08,13.59559401]
[1758309608449,31.2,238.11,238.08,13.59559401]
[1758309608630,31.2,238.11,238.09,32.5]
[1758309608827,31.2,238.11,238.1,32.5]
[1758309609746,32.67809054,238.11,238.1,32.5]
[1758309609947,32.67809054,238.11,238.08,14.25559401]
[1758309610250,31.2,238.11,238.09,32.5]
[1758309610559,1.47809054,238.1,238.06,14.25559401]
[1758309610739,31.2,238.11,238.07,33.16]
[1758309611358,31.2,238.11,238.07,0.66]
[1758309611552,0.5,238.1,238.03,0.66]
[1758309611732,0.5,238.09,238.04,32.5]
[1758309612058,1.47809054,238.05,238.04,33.16]
[1758309616063,1.47809054,238.05,238.04,0.66]
[1758309616275,1.47809054,238.05,238.04,32.5]
[1758309616456,1.47809054,238.05,238.01,0.66]
[1758309616652,1.47809054,238.02,238.01,0.66]
[1758309616966,1.47809054,238.02,238.01,33.16]
[1758309618174,1.47809054,238.02,238.01,32.5]
[1758309618645,1.47809054,238.02,238.01,33.16]
[1758309619271,1.47809054,238.02,238.01,32.5]
[1758309619565,1.47809054,238.02,238.0,0.66]
[1758309619760,1.47809054,238.02,238.01,32.5]
[1758309619946,1.47809054,238.02,238.01,33.16]
[1758309620467,1.47809054,238.02,237.99,13.59559401]
[1758309620676,13.13929557,238.04,238.0,32.5]
[1758309620846,1.47809054,238.01,238.0,46.09559401]
[1758309621250,1.47809054,238.01,238.0,46.75559401]
[1758309621461,1.47809054,238.01,238.0,50.95727468]
[1758309624474,1.47809054,238.01,238.0,14.25559401]
[1758309624768,1.47809054,238.01,238.0,46.75559401]
[1758309625952,1.47809054,238.01,238.0,14.25559401]
[1758309626153,32.67809054,238.01,238.0,32.48]
[1758309626668,32.67809054,238.01,238.0,33.18]
[1758309627178,32.67809054,238.01,238.0,32.48]
[1758309627385,1.47809054,238.01,238.0,32.48]
[1758309627873,1.97809054,238.01,237.95,17.79805707]
[1758309628075,1.47809054,237.96,237.95,17.79805707]
[1758309628372,43.84142595,238.02,237.95,17.79805707]
[1758309628373,1.47809054,237.97,237.95,28.30446597]
[1758309628668,1.47809054,238.01,237.97,13.59559401]
[1758309628964,1.47809054,238.01,237.98,33.18]
[1758309629163,1.47809054,238.0,237.99,0.7]
[1758309629949,43.84036067,238.05,238.0,13.59559401]
[1758309629950,31.2,238.05,238.0,13.59559401]
[1758309630168,1.47809054,238.01,237.96,13.59559401]
[1758309630367,1.47809054,238.01,237.98,13.59559401]
[1758309630545,1.47809054,238.02,238.0,13.59559401]
[1758309630750,1.47809054,238.02,238.01,33.18]
[1758309631967,1.47809054,238.02,238.01,45.81929557]
[1758309632575,1.47809054,238.02,238.01,50.0207997]
[1758309632875,1.47809054,238.02,238.01,63.61639371]
[1758309633972,1.47809054,238.03,238.02,13.59559401]
[1758309634158,1.47809054,238.03,238.02,14.29559401]
[1758309634677,1.47809054,238.03,238.02,26.93382466]
[1758309634856,1.47809054,238.03,238.02,59.41382466]
[1758309636176,1.47809054,238.03,238.02,63.61515227]
[1758309636753,1.47809054,238.04,238.02,74.11847131]
[1758309637057,1.47809054,238.04,238.03,14.29559401]
[1758309637481,1.47809054,238.04,238.03,26.93329226]
[1758309637960,1.47809054,238.04,238.03,31.13444337]
[1758309641676,5.91236216,238.14,238.03,31.13444337]
[1758309641677,0.5,238.11,238.03,41.63732115]
[1758309641980,0.5,238.11,238.04,33.18]
[1758309642359,0.5,238.11,238.05,0.7]
[1758309642555,0.5,238.11,238.06,32.48]
[1758309642778,2.8262296,238.12,238.06,32.48]
[1758309643078,1.47809054,238.07,238.06,32.48]
[1758309643281,1.97809054,238.07,238.06,32.48]
[1758309643466,1.97809054,238.07,238.04,12.63769825]
[1758309643652,31.2,238.09,238.04,17.53867287]
[1758309643653,1.47809054,238.05,238.04,17.53867287]
[1758309643858,1.47809054,238.05,238.04,50.01867287]
[1758309648687,1.47809054,238.05,238.04,16.83867287]
[1758309648874,1.47809054,238.05,238.04,36.66097462]
[1758309649268,1.47809054,238.05,238.04,37.36097462]
[1758309649772,1.47809054,238.05,238.04,49.99867288]
[1758309651082,1.47809054,238.05,238.04,63.59426689]
[1758309652768,1.47809054,238.05,238.04,62.89426689]
[1758309653087,1.47809054,238.05,238.04,63.59426689]
[1758309657394,1.47809054,238.06,238.05,13.59559401]
[1758309657586,1.47809054,238.06,238.05,46.05559401]
[1758309657760,1.47809054,238.06,238.05,46.73559401]
[1758309657964,1.47809054,238.06,238.05,63.57302576]
[1758309658865,133.4,238.13,238.05,74.07502113]
[1758309659066,1.47809054,238.12,238.07,13.59559401]
[1758309659366,1.47809054,238.12,238.08,33.14]
[1758309659566,1.47809054,238.12,238.08,45.77556912]
[1758309659775,1.47809054,238.12,238.09,0.68]
[1758309659981,1.47809054,238.12,238.1,37.329916]
[1758309661084,2.83275976,238.13,238.1,37.329916]
[1758309661399,1.47809054,238.13,238.12,4.19956324]
[1758309661563,1.47809054,238.13,238.12,36.65956324]
[1758309661988,1.97809054,238.13,238.05,14.70273616]
[1758309662171,1.47809054,238.09,238.06,46.05559401]
[1758309662487,1.47809054,238.09,238.07,0.67]
[1758309662662,1.47809054,238.11,238.08,33.13]
[1758309663176,1.47809054,238.11,238.08,32.46]
[1758309663476,1.47809054,238.11,238.09,0.67]
[1758309663666,1.47809054,238.11,238.1,36.659916]
[1758309665185,1.47809054,238.11,238.1,37.329916]
[1758309665492,3.33202505,238.16,238.1,37.329916]
[1758309665694,1.47809054,238.14,238.1,47.829706]
[1758309665986,1.47809054,238.14,238.11,0.67]
[1758309666170,1.47809054,238.14,238.12,33.11]
[1758309666372,1.47809054,238.14,238.13,32.44]
[1758309667276,1.47809054,238.14,238.08,2.83202505]
[1758309667481,1.47809054,238.09,238.08,7.03227229]
[1758309667787,1.47809054,238.09,238.08,39.47227229]
[1758309668492,1.47809054,238.09,238.08,36.64024724]
[1758309669794,2.30994543,238.09,238.08,36.64024724]
[1758309672081,2.30994543,238.09,238.08,37.31024724]
[1758309673196,2.80994543,238.09,238.08,32.44]
[1758309673399,2.30994543,238.09,238.08,32.44]
[1758309679487,34.00994543,238.09,238.02,0.67]
[1758309679692,2.30994543,238.03,238.02,14.26559401]
[1758309679906,2.30994543,238.03,238.02,46.70559401]
[1758309680203,0.5,238.08,238.02,46.70559401]
[1758309680507,2.30994543,238.03,238.02,46.70559401]
[1758309680680,2.30994543,238.03,238.02,14.26559401]
[1758309680881,2.30994543,238.03,238.02,50.90674727]
[1758309681900,2.30994543,238.03,238.02,13.59559401]
[1758309682202,2.30994543,238.03,238.02,46.03559401]
[1758309682902,2.30994543,238.03,238.02,50.23692162]
[1758309683104,2.83279818,238.06,238.02,50.90692162]
[1758309683302,2.30994543,238.03,238.02,50.23692162]
[1758309683990,2.30994543,238.03,238.02,50.90692162]
[1758309684188,2.30994543,238.03,238.02,0.67]
[1758309684387,2.30994543,238.03,238.02,33.11]
[1758309684894,2.30994543,238.03,238.02,4.87132761]
[1758309685101,2.30994543,238.03,238.02,37.31132761]
[1758309686206,34.00994543,238.03,237.98,4.92198381]
[1758309686399,2.30994543,237.99,237.98,18.51757782]
[1758309686701,2.30994543,237.99,237.98,50.95757782]
[1758309687280,2.30994543,237.99,237.98,46.75559401]
[1758309687601,33.50994543,237.99,237.92,14.71082716]
[1758309687816,2.80994543,238.0,237.93,46.73559401]
[1758309687993,2.80994543,238.0,237.94,32.42]
[1758309688196,34.00994543,238.0,237.93,18.51842575]
[1758309688520,34.00994543,238.0,237.95,32.44]
[1758309688688,0.5,237.99,237.95,32.44]
[1758309688888,2.30994543,237.96,237.95,32.44]
[1758309690486,2.30994543,237.96,237.93,17.79849443]
[1758309690685,0.5,237.99,237.94,32.44]
[1758309690913,2.30994543,237.95,237.94,32.44]
[1758309691292,2.30994543,237.95,237.94,33.16]
[1758309692409,0.5,237.99,237.94,33.16]
[1758309692582,2.30994543,237.95,237.94,33.16]
[1758309694018,2.30994543,237.95,237.92,0.72]
[1758309694216,2.30994543,237.93,237.92,0.72]
[1758309694394,2.30994543,237.93,237.92,33.16]
[1758309696106,2.30994543,237.93,237.92,32.44]
[1758309696612,2.30994543,237.93,237.92,33.16]
[1758309700927,12.64462288,238.0,237.93,13.59559401]
[1758309701095,31.2,237.97,237.94,33.16]
[1758309701299,2.30994543,237.96,237.95,0.72]
[1758309701802,0.5,238.02,237.95,0.72]
[1758309702018,2.30994543,237.97,237.96,32.44]
[1758309702199,2.30994543,237.97,237.96,33.16]
[1758309702796,2.30994543,237.97,237.96,32.44]
[1758309704319,12.64249141,238.04,237.96,36.64238695]
[1758309704502,12.64249141,238.04,237.97,0.72]
[1758309704710,2.30994543,238.0,237.98,32.44]
[1758309705008,2.30994543,238.0,237.99,0.72]
[1758309705526,2.30994543,238.0,237.99,4.92185722]
[1758309706905,2.30994543,238.0,237.99,37.36185722]
[1758309710320,2.30994543,238.02,237.99,37.36185722]
[1758309710528,2.30994543,238.02,238.01,4.20150413]
[1758309710735,2.30994543,238.02,238.01,36.62150413]
[1758309712835,31.2,238.06,238.01,37.34150413]
[1758309713019,2.30994543,238.02,238.01,37.34150413]
[1758309715822,2.30994543,238.02,238.01,36.62150413]
[1758309717436,33.50994543,238.02,238.01,36.62150413]
[1758309719040,2.30994543,238.02,238.01,37.32150413]
[1758309721034,2.30994543,238.02,238.01,36.62150413]
[1758309722325,2.30994543,238.02,238.01,37.32150413]
[1758309727533,33.50994543,238.02,238.01,37.32150413]
[1758309729239,2.30994543,238.02,238.01,37.32150413]
[1758309730143,33.50994543,238.02,238.01,37.32150413]
[1758309730639,2.30994543,238.02,238.01,37.32150413]
[1758309731832,1.47910419,238.02,238.01,37.32150413]
[1758309733838,1.47910419,238.04,238.01,47.82526447]
[1758309734038,1.47910419,238.04,238.02,0.7]
[1758309734245,1.47910419,238.04,238.03,32.4]
[1758309734543,1.47910419,238.04,238.03,33.1]
[1758309735137,1.47910419,238.04,238.03,37.30115111]
[1758309736821,31.7,238.1,238.03,37.30115111]
[1758309736822,2.83176939,238.09,238.03,37.30115111]
[1758309737035,1.47910419,238.04,238.03,47.10402889]
[1758309737623,1.47910419,238.04,238.03,47.80402889]
[1758309739750,1.47910419,238.04,238.03,4.90115111]
[1758309739944,1.47910419,238.04,238.03,37.30115111]
[1758309740454,1.47910419,238.04,238.03,32.4]
[1758309740751,4.81095718,238.04,238.03,32.4]
[1758309742833,4.81095718,238.04,237.96,4.90238695]
[1758309743152,1.47910419,237.97,237.96,4.20238695]
[1758309743326,1.47910419,237.97,237.96,36.60238695]
[1758309743525,1.47910419,237.97,237.96,37.30238695]
[1758309746644,1.47910419,237.97,237.96,4.90238695]
[1758309746845,1.47910419,237.97,237.96,37.30238695]
[1758309748963,31.2,238.07,237.96,47.80835433]
[1758309749161,1.47910419,237.97,237.96,60.70394834]
[1758309749665,1.47910419,237.97,237.96,61.41394834]
[1758309757551,2.83531453,238.01,237.96,61.41394834]
[1758309757866,0.5,238.04,237.97,0.71]
[1758309758073,2.8352419,238.03,237.98,32.38]
[1758309758261,2.8352419,238.02,237.98,33.09]
[1758309758460,2.8352419,238.01,237.98,33.09]
[1758309758666,0.5,238.03,237.98,33.09]
[1758309758872,2.83533215,238.02,237.99,0.71]
[1758309759180,2.83533215,238.01,238.0,32.38]
[1758309760052,4.31443634,238.01,238.0,32.38]
[1758309761382,4.31443634,238.01,238.0,33.09]
[1758309761581,4.31443634,238.01,238.0,32.38]
[1758309763185,4.31443634,238.01,238.0,33.09]
[1758309763477,4.31443634,238.01,238.0,37.29168067]
[1758309763683,1.47910419,238.01,238.0,37.29168067]
[1758309765378,1.47910419,238.01,238.0,36.58168067]
[1758309765771,1.47910419,238.01,238.0,37.29168067]
[1758309769065,1.47910419,238.01,238.0,33.09]
[1758309769266,1.47910419,238.01,238.0,32.38]
[1758309770873,1.47910419,238.01,238.0,33.09]
[1758309772476,1.47910419,238.01,238.0,37.29162382]
[1758309779276,1.47910419,238.01,238.0,4.91162382]
[1758309779477,1.47910419,238.01,238.0,37.27162382]
[1758309782492,1.47910419,238.01,238.0,40.10772057]
[1758309786988,1.47910419,238.02,238.0,40.10772057]
[1758309787182,1.47910419,238.02,238.01,4.88150413]
[1758309788295,2.83626836,238.05,238.02,13.59559401]
[1758309788501,31.2,238.06,238.03,33.04]
[1758309788702,1.47910419,238.08,238.04,14.27559401]
[1758309788885,2.83583685,238.07,238.05,0.68]
[1758309789200,1.47910419,238.08,238.05,33.04]
[1758309789504,2.83590442,238.07,238.06,4.88062169]
[1758309790004,2.83590442,238.07,238.06,18.4762157]
[1758309790184,1.47910419,238.08,238.06,18.4762157]
[1758309790498,1.47910419,238.08,238.07,32.36]
[1758309790695,1.47910419,238.08,238.07,33.04]
[1758309790890,4.31339915,238.08,238.07,33.04]
[1758309791099,1.47910419,238.08,238.07,33.04]
[1758309791405,1.47910419,238.08,238.07,37.24044524]
[1758309791798,2.31007808,238.08,238.07,37.24044524]
[1758309792193,5.14437304,238.08,238.07,37.24044524]